bitfinex/quotes_ETHUSD_20250213
["timestamp","ask_amount","ask_price","bid_price","bid_amount"]
[1739438594325,1.72285994,2677.6,2677.1,0.8238]
[1739438594529,5.45761994,2677.6,2677.0,7.47097]
[1739438594725,5.45761994,2677.6,2677.1,6.73536]
[1739438595668,3.73483,2677.5,2677.1,3.0]
[1739438595829,3.77787487,2677.5,2677.1,3.0]
[1739438596034,0.04304487,2677.5,2677.1,3.0]
[1739438596248,0.04304487,2677.5,2677.2,3.73522]
[1739438596659,0.04304487,2677.5,2677.3,3.73497]
[1739438596830,1.6795,2677.6,2677.3,3.73497]
[1739438597031,0.04304293,2677.4,2677.3,3.73497]
[1739438597233,1.6795,2677.6,2677.3,3.73497]
[1739438597429,1.5535,2677.6,2677.5,3.73482]
[1739438598131,1.5535,2677.9,2677.5,3.0]
[1739438598326,1.5535,2677.9,2677.5,6.73475]
[1739438598570,1.5535,2677.9,2677.8,3.7344]
[1739438599042,1.5535,2677.9,2677.7,3.73452]
[1739438599247,1.5535,2677.9,2677.7,3.73446]
[1739438599855,1.5535,2677.9,2677.8,3.7344]
[1739438600062,1.5535,2677.9,2677.6,6.73468]
[1739438600851,1.5535,2677.9,2677.7,3.73444]
[1739438601349,1.5535,2677.9,2677.8,3.7344]
[1739438602842,1.5535,2677.9,2677.6,6.73456]
[1739438603150,1.5535,2677.9,2677.6,3.0]
[1739438603547,1.5535,2677.9,2677.5,4.47930939]
[1739438603977,1.5535,2677.9,2677.6,3.0]
[1739438604170,1.5535,2677.9,2677.7,3.73452]
[1739438604475,1.5535,2677.9,2677.7,3.73454]
[1739438604871,1.5535,2677.9,2677.6,6.73467]
[1739438605986,0.126,2677.8,2677.3,4.59460754]
[1739438606133,3.73463,2677.7,2677.2,8.27254725]
[1739438606339,3.73463,2677.7,2677.3,3.73503]
[1739438606557,3.8605,2677.8,2677.3,3.73503]
[1739438607075,3.8605,2677.8,2677.2,7.51685]
[1739438607280,3.73461,2677.7,2677.0,0.7894]
[1739438607453,0.126,2677.8,2677.0,0.7894]
[1739438607773,0.03998561,2677.6,2677.4,3.0]
[1739438607978,0.03998755,2677.7,2677.4,3.0]
[1739438608275,0.126,2677.8,2677.4,3.0]
[1739438608464,0.04005751,2677.6,2677.3,3.73509]
[1739438608664,3.73461,2677.7,2677.3,3.73509]
[1739438608861,0.04005557,2677.5,2677.3,7.47012]
[1739438609178,0.04005557,2677.5,2677.2,3.0]
[1739438609179,0.126,2677.8,2677.1,0.37894]
[1739438609349,0.04005363,2677.4,2677.3,6.73498]
[1739438609553,0.126,2677.8,2677.5,3.0]
[1739438609775,3.73462,2677.7,2677.5,3.0]
[1739438610152,3.73462,2677.7,2677.0,1.52050289]
[1739438610153,3.73484,2677.5,2677.0,5.25594289]
[1739438610363,3.74978,2677.6,2677.1,6.73534]
[1739438611190,3.74978,2677.6,2677.2,3.73524]
[1739438611760,0.04004156,2677.5,2677.1,6.73524]
[1739438612388,3.77498156,2677.5,2677.1,3.0]
[1739438612559,0.04004156,2677.5,2677.1,3.0]
[1739438612753,0.04004156,2677.5,2677.1,6.73531]
[1739438613185,3.77486156,2677.5,2677.1,6.73531]
[1739438613365,0.04004156,2677.5,2677.1,6.73531]
[1739438614290,0.04004156,2677.5,2677.3,3.73503]
[1739438614473,0.04004156,2677.5,2677.3,3.73499]
[1739438615389,0.04004156,2677.5,2677.2,3.73523]
[1739438615547,0.04004156,2677.5,2677.3,3.73503]
[1739438615752,0.04004156,2677.5,2677.2,3.73523]
[1739438615961,1.59354156,2677.5,2677.3,3.73508]
[1739438616595,1.5535,2677.5,2677.1,3.73526]
[1739438616758,0.04003801,2677.4,2677.3,3.73509]
[1739438617190,0.04003801,2677.4,2677.1,3.73526]
[1739438617368,0.04003801,2677.4,2677.2,6.73524]
[1739438617771,0.04003801,2677.4,2677.3,3.7351]
[1739438619658,1.5535,2677.5,2677.1,3.73529]
[1739438619909,0.04003639,2677.4,2677.2,6.73515]
[1739438620208,0.04003639,2677.4,2677.2,10.47031]
[1739438620504,0.04003639,2677.4,2677.3,3.7351]
[1739438622797,0.04003639,2677.4,2677.3,4.782125]
[1739438623194,1.5535,2677.5,2677.4,3.73496]
[1739438623489,1.59350686,2677.5,2677.4,3.73496]
[1739438624687,1.5535,2677.5,2677.4,3.73496]
[1739438624859,0.04000686,2677.5,2677.4,7.37310037]
[1739438625064,0.285,2678.2,2678.0,3.73411]
[1739438625294,5.29,2678.2,2678.0,3.73411]
[1739438625501,0.04002081,2678.1,2678.0,3.73411]
[1739438626110,0.04002081,2678.1,2677.8,7.46862]
[1739438626321,0.04002081,2678.1,2677.4,8.48765307]
[1739438626516,0.04002081,2678.1,2677.9,3.73426]
[1739438626988,0.04002081,2678.1,2678.0,3.73412]
[1739438627496,9.02385,2678.2,2677.7,5.28805024]
[1739438627696,0.0401736,2678.1,2677.9,3.0]
[1739438628588,0.0401736,2678.1,2677.7,4.52414]
[1739438629556,0.0401736,2678.1,2677.6,3.73459]
[1739438629689,0.126,2678.0,2677.6,3.73459]
[1739438630023,0.126,2678.0,2677.6,3.73456]
[1739438630024,0.16474193,2678.0,2677.6,3.73456]
[1739438630324,0.16474193,2678.0,2677.7,3.0]
[1739438632415,3.89898193,2678.0,2677.7,3.0]
[1739438632612,0.16474193,2678.0,2677.6,3.73467]
[1739438633643,3.89888193,2678.0,2677.6,3.73467]
[1739438633788,0.16474193,2678.0,2677.6,3.73467]
[1739438634195,0.16474193,2678.0,2677.6,3.73462]
[1739438634395,0.16474193,2678.0,2677.4,0.8056]
[1739438634629,5.45474193,2678.0,2677.5,6.73471]
[1739438634795,5.45474193,2678.0,2677.6,3.7346]
[1739438634994,5.45474193,2678.0,2677.6,6.7346]
[1739438635216,5.45474193,2678.0,2677.7,3.73445]
[1739438635498,5.45474193,2678.0,2677.4,4.63463748]
[1739438635499,5.32874193,2678.0,2677.9,3.73426]
[1739438636489,5.29,2678.0,2677.9,3.73426]
[1739438636695,5.29,2678.0,2677.9,4.562364]
[1739438636908,5.32865658,2678.0,2677.9,4.562364]
[1739438639311,5.32865658,2678.0,2677.9,3.73426]
[1739438639845,0.03865658,2678.0,2677.9,3.73426]
[1739438640198,5.29,2678.3,2677.9,3.73426]
[1739438640640,5.29,2678.3,2677.8,0.8124]
[1739438640829,9.02372,2678.3,2677.8,4.54674]
[1739438641032,9.02372,2678.3,2677.8,3.73434]
[1739438641345,5.29,2678.3,2677.8,3.73434]
[1739438641847,3.73392,2678.2,2677.7,3.73442]
[1739438642047,3.74925,2678.0,2677.6,3.0]
[1739438642249,0.126,2677.9,2677.6,3.0]
[1739438642557,0.126,2677.9,2677.6,6.73468]
[1739438642723,0.0374738,2677.8,2677.6,6.73468]
[1739438643404,0.0374738,2677.8,2677.6,3.0]
[1739438643748,0.0374738,2677.8,2677.3,0.74960478]
[1739438643911,0.0374738,2677.8,2677.6,3.0]
[1739438644545,0.0374738,2677.8,2677.7,6.73454]
[1739438645033,5.701,2678.3,2678.0,3.73411]
[1739438645410,0.03743661,2678.2,2678.0,3.73411]
[1739438645633,5.701,2678.3,2678.0,3.73411]
[1739438646029,0.03743661,2678.2,2678.0,3.73411]
[1739438646410,5.701,2678.3,2678.0,3.73411]
[1739438646925,0.03743661,2678.2,2678.0,3.73411]
[1739438647307,5.29,2678.3,2678.2,3.73385]
[1739438647508,5.32743855,2678.3,2678.2,3.73385]
[1739438647963,5.32743855,2678.3,2678.1,4.56657]
[1739438648539,5.32743855,2678.3,2678.2,3.73385]
[1739438648759,0.03743855,2678.3,2678.2,4.6385761]
[1739438649052,3.85902,2678.8,2678.2,4.6385761]
[1739438649256,3.85902,2678.8,2678.3,3.73359]
[1739438649547,0.03752265,2678.7,2678.5,3.7334]
[1739438649929,0.126,2678.8,2678.4,3.73348]
[1739438650236,0.03752072,2678.6,2678.4,4.57065961]
[1739438650439,0.126,2678.8,2678.4,0.83717961]
[1739438650767,3.85902,2678.8,2678.4,0.83717961]
[1739438650973,0.03618634,2678.7,2678.4,0.83717961]
[1739438651265,3.85902,2678.8,2678.3,3.73359]
[1739438651462,0.126,2678.8,2678.2,0.9047261]
[1739438651629,3.73337,2678.6,2678.1,3.0]
[1739438651967,0.03618247,2678.5,2678.1,6.73396]
[1739438652265,0.03618247,2678.5,2677.9,1.55488933]
[1739438652442,0.03618247,2678.5,2678.1,3.0]
[1739438652642,0.03618247,2678.5,2678.1,7.93623293]
[1739438652968,0.03618247,2678.5,2678.1,7.93622293]
[1739438653267,0.03618247,2678.5,2678.1,11.67012293]
[1739438653421,0.03618247,2678.5,2678.1,7.93621293]
[1739438654368,0.03618247,2678.5,2678.1,11.67012293]
[1739438654564,0.03618247,2678.5,2678.1,7.93621293]
[1739438654765,5.32618247,2678.5,2678.1,7.93621293]
[1739438654943,5.32618247,2678.5,2678.1,6.7339]
[1739438655146,9.05962247,2678.5,2678.1,6.7339]
[1739438655352,9.05962247,2678.5,2678.1,6.73396]
[1739438655532,0.126,2678.4,2678.0,6.73409]
[1739438656034,0.03638527,2678.3,2678.0,6.73409]
[1739438656235,0.03638527,2678.3,2678.0,7.93640493]
[1739438657270,0.03638527,2678.3,2678.0,4.20231493]
[1739438657441,12.79392527,2678.3,2678.0,3.0]
[1739438657647,12.79393527,2678.3,2678.0,3.0]
[1739438658180,0.126,2678.0,2677.5,3.7348]
[1739438658380,0.126,2678.0,2677.6,3.0]
[1739438658533,0.03637752,2677.9,2677.6,0.73602004]
[1739438658949,3.77067752,2677.9,2677.6,0.73602004]
[1739438659142,3.77067752,2677.9,2677.4,3.0]
[1739438659437,0.03637752,2677.9,2677.5,3.7348]
[1739438659635,0.03637752,2677.9,2677.3,13.06999]
[1739438659834,0.03637752,2677.9,2677.4,6.73489]
[1739438660066,0.03637752,2677.9,2677.5,3.7347]
[1739438660273,3.86016,2678.0,2677.5,5.04167]
[1739438660470,0.03637752,2677.9,2677.5,5.04167]
[1739438660675,0.03637752,2677.9,2677.6,3.0]
[1739438660862,0.126,2678.0,2677.6,6.73457]
[1739438661038,0.03637752,2677.9,2677.7,3.7345]
[1739438661239,0.03637752,2677.9,2677.8,3.7344]
[1739438661452,0.126,2678.0,2677.8,3.7344]
[1739438661654,0.126,2678.2,2677.9,3.73421]
[1739438662077,0.126,2678.2,2677.8,3.73433]
[1739438662376,0.126,2678.2,2677.8,7.46864]
[1739438662583,0.126,2678.2,2677.9,3.73423]
[1739438662995,3.85986,2678.2,2677.8,4.9740344]
[1739438663157,0.126,2678.2,2677.8,4.9740344]
[1739438663485,5.416,2678.2,2677.8,4.9740344]
[1739438664056,5.416,2678.2,2677.8,8.7083144]
[1739438664255,5.416,2678.2,2677.9,3.73414]
[1739438664785,5.416,2678.2,2677.8,1.2397244]
[1739438664989,5.416,2678.2,2677.8,4.9741144]
[1739438665489,0.03630504,2678.1,2677.8,4.9741144]
[1739438665694,0.03630504,2678.1,2677.9,3.73419]
[1739438666063,0.03630504,2678.1,2678.0,3.73412]
[1739438666292,0.03630504,2678.1,2678.0,7.53382]
[1739438666452,5.29,2678.2,2678.1,6.73399]
[1739438668002,5.32613623,2678.2,2678.1,6.73399]
[1739438669572,0.03613623,2678.2,2678.1,6.73399]
[1739438669772,0.03613623,2678.2,2678.1,7.94785404]
[1739438669981,5.416,2678.9,2678.5,3.73342]
[1739438670181,5.416,2678.9,2678.8,3.73301]
[1739438670384,5.29,2678.9,2678.8,3.73301]
[1739438670576,5.29,2678.9,2678.6,3.73324]
[1739438670901,5.29,2678.9,2678.5,3.73343]
[1739438671100,5.29,2678.9,2678.6,4.181983]
[1739438672078,5.29,2679.2,2678.9,3.7328]
[1739438672672,5.29,2679.2,2678.9,3.73278]
[1739438672983,5.29,2679.2,2678.9,3.73276]
[1739438673167,5.29,2679.2,2678.9,0.827443]
[1739438674709,5.29,2679.2,2678.7,3.73314]
[1739438674710,9.02252,2679.2,2678.7,3.73314]
[1739438674907,9.02252,2679.2,2678.7,7.46622]
[1739438675116,9.02252,2679.2,2678.7,3.73308]
[1739438675803,9.02252,2679.2,2678.7,3.73307]
[1739438675972,9.02252,2679.2,2678.7,3.73305]
[1739438676173,9.02252,2679.2,2678.7,8.66974751]
[1739438676504,9.02252,2679.2,2678.7,4.93669751]
[1739438676710,9.02252,2679.2,2678.7,4.93678751]
[1739438677003,9.02249,2679.2,2678.7,4.93670751]
[1739438677312,3.73274,2679.0,2678.5,3.73337]
[1739438677510,3.73274,2679.0,2678.5,3.73335]
[1739438677669,3.87371,2679.1,2678.6,3.0]
[1739438678220,0.141,2679.1,2678.7,3.73308]
[1739438681202,0.03693255,2678.6,2678.3,3.0]
[1739438682041,3.7335,2678.5,2678.1,1.21386404]
[1739438682340,0.03692868,2678.4,2678.2,3.0]
[1739438682542,3.85916,2678.7,2678.2,6.73375]
[1739438682843,0.03692674,2678.3,2678.2,6.73375]
[1739438683045,5.29,2678.6,2678.2,3.0]
[1739438683199,0.03692674,2678.3,2678.2,3.0]
[1739438683404,9.02335,2678.6,2678.2,3.0]
[1739438683639,0.03692674,2678.3,2678.2,3.0]
[1739438683830,9.02335,2678.6,2678.2,3.82822795]
[1739438684027,0.03692674,2678.3,2678.2,3.82822795]
[1739438684230,9.02335,2678.6,2678.2,3.82822795]
[1739438684430,0.03692674,2678.3,2678.2,3.82822795]
[1739438684628,3.73352,2678.5,2678.2,0.82822795]
[1739438684947,9.02335,2678.6,2678.2,3.0]
[1739438685150,0.03673556,2678.4,2678.2,3.0]
[1739438685308,9.02335,2678.6,2678.2,3.0]
[1739438685515,0.0367375,2678.5,2678.2,3.0]
[1739438685743,3.7701875,2678.5,2678.2,3.0]
[1739438686009,0.0367375,2678.5,2678.2,3.0]
[1739438689216,0.0367375,2678.5,2678.2,6.73378]
[1739438689443,0.0367375,2678.5,2678.3,3.73363]
[1739438692157,0.0367375,2678.5,2678.2,4.128033]
[1739438692342,0.0367375,2678.5,2678.2,7.861873]
[1739438692537,0.0367375,2678.5,2678.3,3.73363]
[1739438692742,0.0367375,2678.5,2678.3,7.46724]
[1739438692941,0.0367375,2678.5,2678.3,8.6267673]
[1739438693146,0.0367375,2678.5,2678.4,3.73357]
[1739438695056,0.0367375,2678.5,2678.4,4.50747]
[1739438699160,0.0367375,2678.5,2678.4,0.7739]
[1739438699365,0.0367375,2678.5,2678.2,11.22999]
[1739438699732,0.0367375,2678.5,2678.2,7.49615]
[1739438700169,0.0367375,2678.5,2678.0,3.73402]
[1739438700170,3.8962875,2678.5,2678.1,3.0]
[1739438700331,0.1627375,2678.5,2678.2,3.73383]
[1739438700552,0.1627375,2678.5,2678.2,3.0]
[1739438700886,3.73358,2678.4,2678.1,3.0]
[1739438701275,0.03520091,2678.3,2678.1,6.73396]
[1739438701588,0.126,2678.5,2678.0,3.0]
[1739438701756,0.03519898,2678.2,2678.0,0.82765804]
[1739438701953,5.29,2678.6,2678.2,3.73375]
[1739438702154,5.29,2678.6,2677.9,3.74812035]
[1739438702155,0.126,2678.4,2678.0,3.73406]
[1739438702553,0.03514394,2678.3,2678.0,3.73406]
[1739438702756,0.03514394,2678.3,2678.2,3.0]
[1739438703094,0.03514394,2678.3,2678.1,3.0]
[1739438703792,0.126,2678.4,2678.1,6.73397]
[1739438705080,5.416,2678.4,2678.1,6.73397]
[1739438705593,9.14959,2678.4,2678.1,3.0]
[1739438705798,5.416,2678.4,2678.1,3.0]
[1739438706096,5.416,2678.4,2678.1,6.7339]
[1739438706456,5.416,2678.4,2678.2,3.73383]
[1739438706714,5.416,2678.4,2678.3,3.73371]
[1739438706891,5.416,2678.4,2678.2,3.0]
[1739438707057,5.416,2678.4,2678.2,6.73377]
[1739438707255,5.416,2678.4,2678.3,3.73371]
[1739438707963,5.29,2678.4,2678.3,3.73371]
[1739438708166,5.29,2678.4,2678.3,5.604478]
[1739438709198,5.29,2678.4,2678.3,5.95182546]
[1739438711076,5.29,2678.8,2678.4,3.73357]
[1739438711309,5.29,2678.8,2678.4,7.46714]
[1739438711607,5.29,2678.8,2678.4,3.73357]
[1739438711976,12.75613,2678.8,2678.3,4.90504746]
[1739438712709,3.73322,2678.7,2678.3,0.34734746]
[1739438713019,3.73322,2678.7,2678.4,0.34734746]
[1739438714073,3.73322,2678.7,2678.2,3.73384]
[1739438714984,3.73322,2678.7,2678.2,7.46761]
[1739438715187,5.29,2678.8,2678.3,3.73362]
[1739438715413,5.29,2678.8,2678.4,3.73357]
[1739438716495,5.29,2678.8,2678.5,0.8304]
[1739438716701,5.29,2678.8,2678.5,4.56375]
[1739438717019,5.29,2678.8,2678.5,0.8304]
[1739438717222,9.02304,2678.8,2678.5,0.8304]
[1739438717912,9.02304,2678.8,2678.3,4.5058]
[1739438718424,9.02304,2678.8,2678.4,3.73353]
[1739438718723,5.29,2678.8,2678.4,4.13538329]
[1739438719202,9.02303,2678.8,2678.4,0.40189329]
[1739438719603,3.73322,2678.7,2678.3,0.7721]
[1739438719799,3.73322,2678.7,2678.3,4.5058]
[1739438719983,5.29,2678.8,2678.4,3.73352]
[1739438720189,5.29,2678.8,2678.3,0.7721]
[1739438720726,12.75623,2678.8,2678.3,4.50579]
[1739438720900,9.02311,2678.8,2678.3,4.50579]
[1739438721233,9.02311,2678.8,2678.4,0.34782335]
[1739438721527,3.85922,2678.7,2678.4,0.34782335]
[1739438721735,0.126,2678.7,2678.4,0.34782335]
[1739438722432,3.85922,2678.7,2678.4,0.34782335]
[1739438722800,3.85922,2678.7,2678.2,3.73375]
[1739438723011,9.14922,2678.7,2678.2,3.73375]
[1739438723847,9.14922,2678.7,2678.3,0.34790926]
[1739438724741,5.416,2678.7,2678.3,0.34790926]
[1739438724946,5.416,2678.7,2678.3,3.73365]
[1739438725148,9.14918,2678.7,2678.2,3.73375]
[1739438725323,5.416,2678.7,2678.3,3.7336]
[1739438726355,9.1492,2678.7,2678.2,3.73375]
[1739438726542,5.416,2678.7,2678.1,3.0]
[1739438726786,5.416,2678.7,2678.3,3.73366]
[1739438727111,9.14919,2678.7,2678.3,3.73366]
[1739438728553,5.416,2678.7,2678.3,3.73366]
[1739438728951,5.416,2678.7,2678.5,3.73331]
[1739438729154,5.29,2678.7,2678.5,3.73331]
[1739438729311,5.29,2678.7,2678.6,4.479964]
[1739438729511,5.29,2678.7,2678.6,8.84016437]
[1739438729811,5.29,2678.7,2678.6,5.262564]
[1739438730767,5.29,2678.7,2678.6,0.746674]
[1739438730965,5.29,2678.7,2678.6,0.34795606]
[1739438733670,5.29,2678.7,2678.6,2.08833505]
[1739438734824,3.85892,2678.9,2678.6,2.08833505]
[1739438735021,3.73315,2678.7,2678.6,0.34795606]
[1739438735236,3.87415,2678.7,2678.6,0.34795606]
[1739438735663,0.126,2678.3,2677.6,1.74037899]
[1739438735965,0.1335,2678.1,2677.4,5.51777899]
[1739438736168,5.574,2678.2,2677.9,3.73418]
[1739438736328,5.574,2678.2,2677.8,5.47477899]
[1739438736329,5.574,2678.2,2677.8,9.20908899]
[1739438736528,5.574,2678.2,2678.0,3.73411]
[1739438736729,5.574,2678.2,2678.0,5.47442899]
[1739438737171,5.574,2678.2,2678.0,9.20847899]
[1739438737350,5.574,2678.2,2678.1,3.73399]
[1739438737551,5.574,2678.2,2678.1,6.73399]
[1739438737974,0.284,2678.2,2678.1,7.53089]
[1739438738179,0.284,2678.2,2678.1,7.87875398]
[1739438738670,5.29,2678.6,2678.4,3.73356]
[1739438738974,5.29,2678.8,2678.3,3.73364]
[1739438739140,5.29,2678.8,2678.3,3.73362]
[1739438739347,5.29,2678.9,2678.3,1.1612324]
[1739438739546,9.02288,2678.9,2678.3,8.6285324]
[1739438739983,9.02288,2678.9,2678.3,8.6284624]
[1739438740300,9.02288,2678.9,2678.4,3.73352]
[1739438740447,9.02288,2678.9,2678.3,3.73359]
[1739438740643,3.73323,2678.7,2678.1,11.26466]
[1739438740840,3.73323,2678.7,2678.1,7.53077]
[1739438741281,3.73323,2678.7,2678.2,3.73383]
[1739438741486,3.73323,2678.7,2678.1,11.26467]
[1739438741656,3.73344,2678.5,2678.1,3.0]
[1739438741893,0.126,2678.6,2678.2,0.34752403]
[1739438742035,5.416,2678.9,2678.4,3.59073724]
[1739438742236,5.29,2678.9,2678.6,3.73329]
[1739438742453,0.284,2679.1,2678.6,3.7332]
[1739438742669,3.73283,2679.0,2678.6,0.7651]
[1739438742872,3.73278,2679.0,2678.6,0.7651]
[1739438743989,3.73278,2679.0,2678.5,6.73332]
[1739438744166,3.73289,2678.9,2678.4,0.7872]
[1739438744348,3.73289,2678.9,2678.5,3.0]
[1739438745554,3.73278,2679.0,2678.5,6.73339]
[1739438746470,4.01661,2679.1,2678.6,3.73321]
[1739438746649,4.01661,2679.1,2678.6,4.85859]
[1739438746848,4.01661,2679.1,2678.6,1.12538]
[1739438747044,7.74933,2679.1,2678.6,1.12538]
[1739438747246,0.126,2679.4,2679.0,3.73271]
[1739438747476,0.284,2679.3,2678.7,0.8092]
[1739438747783,0.284,2679.3,2678.8,3.926368]
[1739438747989,0.284,2679.3,2678.9,3.73287]
[1739438748145,0.126,2679.4,2679.0,3.73271]
[1739438748485,0.284,2679.5,2679.1,4.49312]
[1739438749484,3.85791,2679.6,2679.1,4.49312]
[1739438749679,0.015,2679.7,2679.3,7.46452]
[1739438749891,1.64055025,2679.9,2679.3,3.73231]
[1739438750070,0.04078515,2679.7,2679.3,3.59073724]
[1739438750285,0.03764991,2679.8,2679.7,3.73176]
[1739438750578,6.202,2680.3,2679.9,3.73144]
[1739438750944,0.284,2680.3,2679.8,3.73157]
[1739438751145,4.015,2680.3,2679.7,5.61669972]
[1739438751476,7.746,2680.3,2679.7,5.61669972]
[1739438751818,0.284,2680.3,2679.7,5.61669972]
[1739438752121,3.73123,2680.1,2679.8,0.9207437]
[1739438752386,3.73109,2680.2,2679.8,0.9207437]
[1739438752682,3.85675,2680.5,2679.8,4.6523337]
[1739438752894,3.73092,2680.3,2679.8,4.6523337]
[1739438753190,0.126,2680.3,2679.7,3.0]
[1739438753387,0.015,2680.2,2679.7,3.0]
[1739438753551,3.73155,2679.9,2679.7,3.0]
[1739438753899,3.73162,2679.8,2679.7,3.0]
[1739438754181,3.73162,2679.8,2679.0,3.73266]
[1739438754182,3.73202,2679.6,2679.1,4.63123199]
[1739438754386,3.73169,2679.8,2679.2,7.63623692]
[1739438754748,3.73169,2679.8,2679.2,3.90379692]
[1739438754749,3.73185,2679.7,2679.2,3.90379692]
[1739438754944,3.73185,2679.7,2679.2,7.63623692]
[1739438755141,3.73169,2679.8,2679.2,7.63623692]
[1739438755342,3.73169,2679.8,2679.4,3.0]
[1739438755584,0.03570221,2679.7,2679.4,4.06360969]
[1739438755988,0.03570027,2679.6,2679.4,4.06360969]
[1739438756154,7.46343,2679.8,2679.4,4.06360969]
[1739438756358,5.416,2679.9,2679.4,4.06360969]
[1739438756574,3.73176,2679.7,2679.4,1.06360969]
[1739438756875,3.73176,2679.7,2679.2,7.63622692]
[1739438756876,0.03570027,2679.6,2679.2,7.63622692]
[1739438757588,0.03570027,2679.6,2679.2,4.63621692]
[1739438758453,3.76761027,2679.6,2679.2,0.90379692]
[1739438758891,3.73176,2679.7,2679.2,4.63622692]
[1739438759085,0.03593177,2679.5,2679.2,4.63622692]
[1739438759265,0.0359337,2679.6,2679.3,0.83914075]
[1739438759467,0.03592983,2679.4,2679.3,0.83914075]
[1739438759693,3.73176,2679.7,2679.3,0.83914075]
[1739438759893,3.73171,2679.8,2679.2,7.63622692]
[1739438759894,0.03592983,2679.4,2679.2,7.63622692]
[1739438760094,3.73196,2679.6,2679.2,3.90379692]
[1739438760255,3.7682479,2679.3,2679.0,0.816]
[1739438760460,3.73232,2679.3,2678.8,4.755848]
[1739438760685,0.03592973,2679.2,2679.0,3.73262]
[1739438760860,0.03592973,2679.2,2679.0,7.46526]
[1739438761063,0.126,2679.7,2679.2,3.73233]
[1739438761262,0.015,2679.6,2679.2,3.73233]
[1739438761894,3.73172,2679.8,2679.3,0.7789]
[1739438762361,3.73177,2679.7,2679.3,0.7789]
[1739438762962,3.73197,2679.6,2679.3,0.7789]
[1739438763163,3.7318,2679.7,2679.3,0.7789]
[1739438763601,3.73197,2679.6,2679.3,0.7789]
[1739438763863,3.7318,2679.7,2679.3,0.7789]
[1739438764300,5.416,2679.9,2679.3,0.7789]
[1739438764670,3.73174,2679.8,2679.3,4.51121]
[1739438766084,3.73177,2679.7,2679.3,4.51121]
[1739438766389,5.416,2679.9,2679.4,3.7321]
[1739438766593,9.14755,2679.9,2679.4,3.7321]
[1739438766793,9.14755,2679.9,2679.3,1.603272]
[1739438767106,9.02154,2679.9,2679.4,3.73207]
[1739438767431,5.29,2679.9,2679.6,3.73189]
[1739438767606,5.29,2679.9,2679.6,5.57469775]
[1739438767768,5.29,2680.0,2679.7,3.73168]
[1739438768092,9.02126,2680.1,2679.6,5.57469775]
[1739438768297,5.29,2680.1,2679.6,1.84292775]
[1739438768483,5.29,2680.1,2679.6,0.7928]
[1739438768484,3.73143,2680.0,2679.6,0.7928]
[1739438768677,3.7315,2679.9,2679.6,0.7928]
[1739438769208,0.015,2680.0,2679.4,3.0]
[1739438769379,3.7319,2679.6,2679.4,0.7908]
[1739438769584,3.7319,2679.6,2679.0,0.7908]
[1739438769776,3.73218,2679.4,2679.1,3.0]
[1739438769983,3.73211,2679.5,2679.1,3.0]
[1739438770367,3.73205,2679.5,2679.1,3.0]
[1739438770605,0.03580811,2679.4,2679.1,3.0]
[1739438770814,3.76798811,2679.4,2679.1,3.0]
[1739438770969,3.73233,2679.3,2679.1,3.0]
[1739438771165,0.03574952,2679.2,2679.1,3.0]
[1739438771368,3.73233,2679.3,2679.1,3.0]
[1739438771580,0.03569117,2679.2,2679.1,3.0]
[1739438772214,0.03563856,2679.2,2679.1,3.0]
[1739438772514,0.03563856,2679.2,2679.1,3.752349]
[1739438772684,3.85804,2679.5,2679.1,3.752349]
[1739438772882,0.03563964,2679.2,2679.1,3.0]
[1739438773087,3.73219,2679.4,2679.1,3.0]
[1739438773284,0.126,2679.5,2679.1,3.0]
[1739438773476,0.03564211,2679.3,2679.1,3.0]
[1739438773677,5.29,2679.4,2679.1,3.0]
[1739438773898,0.03564018,2679.2,2679.1,3.0]
[1739438774107,5.29,2679.4,2679.1,6.73257]
[1739438774292,0.03564072,2679.2,2679.1,6.73252]
[1739438774610,5.29,2679.4,2679.1,6.73252]
[1739438774990,0.03564158,2679.3,2679.1,6.73252]
[1739438775380,0.03564158,2679.3,2679.0,3.7908]
[1739438775810,0.03564158,2679.3,2679.0,7.52352]
[1739438776383,3.73206,2679.5,2679.0,7.52352]
[1739438776618,0.03564405,2679.4,2679.0,3.7908]
[1739438776927,3.76790405,2679.4,2679.0,3.7908]
[1739438777077,3.76790405,2679.4,2679.0,7.52352]
[1739438777587,0.03564405,2679.4,2679.0,7.52352]
[1739438777816,3.76782405,2679.4,2679.0,3.7908]
[1739438778120,3.73236,2679.3,2679.0,3.7908]
[1739438778304,3.76782405,2679.4,2679.0,3.7908]
[1739438778490,3.73218,2679.4,2679.0,3.7908]
[1739438778699,3.73239,2679.3,2679.0,3.7908]
[1739438779001,3.85813,2679.5,2679.0,3.7908]
[1739438779208,3.73219,2679.4,2679.0,3.7908]
[1739438779408,3.73219,2679.4,2679.0,7.52352]
[1739438779711,3.73239,2679.3,2679.0,3.7908]
[1739438780447,3.73233,2679.3,2679.0,3.7908]
[1739438781054,0.126,2679.1,2678.3,0.8182]
[1739438781208,3.73273,2679.0,2678.5,3.73335]
[1739438781409,3.73283,2679.0,2678.6,3.0]
[1739438781750,3.74773,2679.0,2678.4,3.0]
[1739438781887,3.73303,2678.8,2678.4,3.0]
[1739438782094,3.73303,2678.8,2678.4,4.11425272]
[1739438782550,3.73303,2678.8,2678.4,7.84782272]
[1739438783109,3.73303,2678.8,2678.4,4.11425272]
[1739438783561,3.74781,2679.0,2678.5,0.34742805]
[1739438783766,3.73288,2678.9,2678.5,0.34742805]
[1739438783928,3.74781,2679.0,2678.5,0.34742805]